[Event "1st SOA-GM Festival 2024"]
[Site "Bhubaneswar"]
[Date "2024.02.01"]
[Round "4.11"]
[White "Nithin Babu"]
[Black "Sidhant, Mohapatra"]
[Result "1/2-1/2"]
[WhiteElo "2177"]
[BlackElo "2421"]
[PlyCount "60"]
[EventDate "2024.02.01"]
[EventType "swiss"]
[EventCountry "IND"]
[TimeControl "5400+30"]

1. e4 {[%emt 0:00:03]} c5 {[%emt 0:02:34]} 2. Nf3 {[%emt 0:00:06]} d6 {[%emt 0:00:53]} 3. Bb5+ {[%emt 0:00:06]} Nd7 {[%emt 0:00:07]} 4. c3 {[%emt 0:00:05]} a6 {[%emt 0:02:37]} 5. Ba4 {[%emt 0:00:05]} Ngf6 {[%emt 0:00:47]} 6. Qe2 {[%emt 0:00:47]} b5 {[%emt 0:05:20]} 7. Bc2 {[%emt 0:00:07]} e5 {[%emt 0:00:11]} 8. d4 {[%emt 0:01:48]} Qc7 {[%emt 0:00:34]} 9. O-O {[%emt 0:00:52]} Be7 {[%emt 0:00:17]} 10. a4 {[%emt 0:06:06]} Rb8 {[%emt 0:02:53]} 11. axb5 {[%emt 0:01:14]} axb5 {[%emt 0:00:07]} 12. h3 {[%emt 0:01:49]} O-O {[%emt 0:00:42]} 13. Be3 {[%emt 0:00:51]} b4 {[%emt 0:08:43]} 14. dxe5 {[%emt 0:03:45]} dxe5 {[%emt 0:01:32]} 15. Nbd2 {[%emt 0:01:06]} bxc3 {[%emt 0:01:54]} 16. bxc3 {[%emt 0:00:15]} Bb7 {[%emt 0:00:08]} 17. Bg5 {[%emt 0:02:55]} Nb6 {[%emt 0:08:07]} 18. Bxf6 {[%emt 0:04:06]} Bxf6 {[%emt 0:00:13]} 19. Nc4 {[%emt 0:01:05]} Nxc4 {[%emt 0:00:20]} 20. Qxc4 {[%emt 0:00:03]} Bc8 {[%emt 0:00:10]} 21. Rfb1 {[%emt 0:10:23]} Be6 {[%emt 0:00:35]} 22. Qe2 {[%emt 0:02:40]} Rxb1+ {[%emt 0:05:34]} 23. Rxb1 {[%emt 0:00:30]} Rb8 {[%emt 0:00:06]} 24. Qa6 {[%emt 0:02:10]} h5 {[%emt 0:03:10]} 25. Nd2 {[%emt 0:05:01]} Bg5 {[%emt 0:00:57]} 26. Rxb8+ {[%emt 0:03:13]} Qxb8 {[%emt 0:00:04]} 27. Nc4 {[%emt 0:01:02]} h4 {[%emt 0:06:06]} 28. Nb6 {[%emt 0:06:44]} Qd6 {[%emt 0:07:01]} 29. Qa8+ {[%emt 0:02:08]} Qd8 {[%emt 0:01:50]} 30. Qxd8+ {[%emt 0:01:40]} Bxd8 {[%emt 0:00:04]} 1/2-1/2

[Event "1st SOA-GM Festival 2024"]
[Site "Bhubaneswar"]
[Date "2024.02.01"]
[Round "4.12"]
[White "Panda Sambit"]
[Black "Majumder Shrayan"]
[Result "1-0"]
[WhiteElo "2404"]
[BlackElo "1916"]
[PlyCount "153"]
[EventDate "2024.02.01"]
[EventType "swiss"]
[EventCountry "IND"]
[TimeControl "5400+30"]

1. Nf3 {[%emt 0:00:28]} c5 {[%emt 0:00:30]} 2. c4 {[%emt 0:00:15]} Nc6 {[%emt 0:00:33]} 3. g3 {[%emt 0:01:01]} g6 {[%emt 0:00:19]} 4. Bg2 {[%emt 0:00:13]} Bg7 {[%emt 0:00:07]} 5. O-O {[%emt 0:00:14]} e5 {[%emt 0:01:46]} 6. Nc3 {[%emt 0:00:31]} Nge7 {[%emt 0:01:40]} 7. a3 {[%emt 0:04:09]} O-O {[%emt 0:03:15]} 8. d3 {[%emt 0:05:05]} d6 {[%emt 0:09:28]} 9. Rb1 {[%emt 0:00:31]} a5 {[%emt 0:01:59]} 10. Ne1 {[%emt 0:00:23]} Be6 {[%emt 0:01:01]} 11. Nd5 {[%emt 0:00:54]} Rb8 {[%emt 0:02:55]} 12. f4 {[%emt 0:46:04]} f6 {[%emt 0:42:29]} 13. a4 {[%emt 0:07:36]} Nb4 {[%emt 0:03:11]} 14. e4 {[%emt 0:00:27]} Nbxd5 {[%emt 0:02:43]} 15. cxd5 {[%emt 0:00:23]} Bd7 {[%emt 0:00:18]} 16. b3 {[%emt 0:01:02]} b5 {[%emt 0:03:19]} 17. axb5 {[%emt 0:00:06]} Rxb5 {[%emt 0:01:14]} 18. Nc2 {[%emt 0:02:57]} a4 {[%emt 0:06:49]} 19. Na3 {[%emt 0:01:02]} Rxb3 {[%emt 0:00:06]} 20. Rxb3 {[%emt 0:00:02]} axb3 {[%emt 0:00:10]} 21. Qxb3 {[%emt 0:00:07]} Qb8 {[%emt 0:01:34]} 22. Qc2 {[%emt 0:02:25]} Nc8 {[%emt 0:02:05]} 23. Be3 {[%emt 0:07:07]} Nb6 {[%emt 0:01:59]} 24. Rb1 {[%emt 0:01:51]} Qa7 {[%emt 0:00:41]} 25. Qb2 {[%emt 0:03:25]} Ra8 {[%emt 0:08:01]} 26. Nb5 {[%emt 0:06:12]} Na4 {[%emt 0:04:10]} 27. Qc2 {[%emt 0:02:35]} Bxb5 {[%emt 0:00:24]} 28. Rxb5 {[%emt 0:00:05]} Qa6 {[%emt 0:00:37]} 29. Rb3 {[%emt 0:04:40]} Nb6 {[%emt 0:00:28]} 30. Qb1 {[%emt 0:00:13]} Nd7 {[%emt 0:01:07]} 31. Rb7 {[%emt 0:01:58]} Ra7 {[%emt 0:00:18]} 32. Rxa7 {[%emt 0:00:24]} Qxa7 {[%emt 0:00:02]} 33. Bh3 {[%emt 0:00:02]} Nf8 {[%emt 0:01:00]} 34. fxe5 {[%emt 0:00:21]} fxe5 {[%emt 0:00:11]} 35. Qb5 {[%emt 0:00:37]} Qa1+ {[%emt 0:00:52]} 36. Kg2 {[%emt 0:00:52]} Qa2+ {[%emt 0:00:06]} 37. Bf2 {[%emt 0:00:32]} Qa7 {[%emt 0:00:46]} 38. Qe8 {[%emt 0:00:22]} Bf6 {[%emt 0:00:22]} 39. Be3 {[%emt 0:01:11]} Qe7 {[%emt 0:00:06]} 40. Qc6 {[%emt 0:00:48]} Kg7 {[%emt 0:00:24]} 41. Bc8 {[%emt 0:01:12]} Bg5 {[%emt 0:01:20]} 42. Bf2 {[%emt 0:00:01]} h5 {[%emt 0:00:31]} 43. h4 {[%emt 0:00:34]} Bf6 {[%emt 0:00:12]} 44. Be1 {[%emt 0:00:57]} g5 {[%emt 0:00:33]} 45. hxg5 {[%emt 0:00:19]} Bxg5 {[%emt 0:00:02]} 46. Ba5 {[%emt 0:00:22]} Be3 {[%emt 0:01:10]} 47. Bc7 {[%emt 0:00:37]} Qf6 {[%emt 0:00:36]} 48. Bf5 {[%emt 0:00:05]} c4 {[%emt 0:00:22]} 49. dxc4 {[%emt 0:00:29]} Bc5 {[%emt 0:00:05]} 50. Bb6 {[%emt 0:00:45]} Bxb6 {[%emt 0:00:34]} 51. Qxb6 {[%emt 0:00:04]} h4 {[%emt 0:00:23]} 52. Qc7+ {[%emt 0:01:19]} Kh6 {[%emt 0:00:50]} 53. gxh4 {[%emt 0:00:27]} Ng6 {[%emt 0:00:46]} 54. Bxg6 {[%emt 0:00:27]} Qxg6+ {[%emt 0:00:02]} 55. Kf3 {[%emt 0:00:17]} Kh5 {[%emt 0:00:32]} 56. c5 {[%emt 0:00:50]} Qg4+ {[%emt 0:00:34]} 57. Ke3 {[%emt 0:00:06]} Qg1+ {[%emt 0:00:48]} 58. Ke2 {[%emt 0:00:14]} Qg2+ {[%emt 0:00:06]} 59. Kd3 {[%emt 0:00:31]} Qf1+ {[%emt 0:00:45]} 60. Kc3 {[%emt 0:00:32]} Qf3+ {[%emt 0:00:37]} 61. Kb4 {[%emt 0:00:43]} Qxe4+ {[%emt 0:00:18]} 62. Kb5 {[%emt 0:00:03]} Qxd5 {[%emt 0:00:48]} 63. Qxd6 {[%emt 0:00:06]} Qb7+ {[%emt 0:00:21]} 64. Qb6 {[%emt 0:00:32]} Qd7+ {[%emt 0:00:07]} 65. Ka6 {[%emt 0:01:36]} Qa4+ {[%emt 0:00:44]} 66. Kb7 {[%emt 0:00:33]} Qd7+ {[%emt 0:00:07]} 67. Kb8 {[%emt 0:00:15]} Qe8+ {[%emt 0:00:35]} 68. Kc7 {[%emt 0:00:13]} Qe7+ {[%emt 0:00:17]} 69. Kc8 {[%emt 0:00:20]} Qe8+ {[%emt 0:00:41]} 70. Kc7 {[%emt 0:01:18]} Qe7+ {[%emt 0:00:05]} 71. Kb8 {[%emt 0:00:09]} Qe8+ {[%emt 0:00:18]} 72. Ka7 {[%emt 0:00:44]} Qd7+ {[%emt 0:00:14]} 73. Ka6 {[%emt 0:00:34]} Qa4+ {[%emt 0:00:14]} 74. Qa5 {[%emt 0:00:07]} Qxa5+ {[%emt 0:01:10]} 75. Kxa5 {[%emt 0:00:05]} e4 {[%emt 0:00:04]} 76. Kb4 {[%emt 0:00:16]} Kg4 {[%emt 0:00:04]} 77. c6 {[%emt 0:00:23]} 1-0

[Event "1st SOA-GM Festival 2024"]
[Site "Bhubaneswar"]
[Date "2024.02.01"]
[Round "4.13"]
[White "Elgabry, Mohsen"]
[Black "Ritviz, Parab"]
[Result "0-1"]
[WhiteElo "2160"]
[BlackElo "2391"]
[PlyCount "68"]
[EventDate "2024.02.01"]
[EventType "swiss"]
[EventCountry "IND"]
[TimeControl "5400+30"]

1. b3 {[%emt 0:00:04]} e5 {[%emt 0:01:47]} 2. Bb2 {[%emt 0:00:07]} Nc6 {[%emt 0:00:19]} 3. e3 {[%emt 0:00:13]} Nf6 {[%emt 0:00:17]} 4. Nf3 {[%emt 0:00:17]} e4 {[%emt 0:03:09]} 5. Nd4 {[%emt 0:00:07]} d5 {[%emt 0:09:30]} 6. Nxc6 {[%emt 0:01:29]} bxc6 {[%emt 0:00:05]} 7. Be2 {[%emt 0:00:08]} Bd6 {[%emt 0:02:49]} 8. d3 {[%emt 0:06:53]} h5 {[%emt 0:13:11]} 9. h3 {[%emt 0:00:25]} Bf5 {[%emt 0:04:36]} 10. Nd2 {[%emt 0:00:30]} Qe7 {[%emt 0:10:45]} 11. a3 {[%emt 0:03:37]} Rd8 {[%emt 0:00:30]} 12. d4 {[%emt 0:00:30]} a5 {[%emt 0:00:30]} 13. Bc3 {[%emt 0:00:30]} c5 {[%emt 0:00:30]} 14. Nf1 {[%emt 0:00:30]} cxd4 {[%emt 0:29:44]} 15. exd4 {[%emt 0:24:10]} Bxa3 {[%emt 0:00:29]} 16. Ne3 {[%emt 0:00:27]} Be6 {[%emt 0:03:04]} 17. Bxa5 {[%emt 0:00:16]} h4 {[%emt 0:00:26]} 18. O-O {[%emt 0:04:01]} Bd6 {[%emt 0:00:15]} 19. c4 {[%emt 0:00:09]} Qd7 {[%emt 0:05:52]} 20. f4 {[%emt 0:04:35]} exf3 {[%emt 0:01:04]} 21. Rxf3 {[%emt 0:00:12]} Bg3 {[%emt 0:12:08]} 22. cxd5 {[%emt 0:05:12]} Nxd5 {[%emt 0:00:00]} 23. Nxd5 {[%emt 0:05:29]} Bxd5 {[%emt 0:00:00]} 24. Re3+ {[%emt 0:00:40]} Kf8 {[%emt 0:00:00]} 25. Bb4+ {[%emt 0:00:17]} Kg8 {[%emt 0:00:00]} 26. Bc5 {[%emt 0:02:50]} Qf5 {[%emt 0:00:00]} 27. Qf1 {[%emt 0:01:49]} Qg5 {[%emt 0:00:00]} 28. Rc3 {[%emt 0:03:39]} Rh6 {[%emt 0:00:00]} 29. Bf3 {[%emt 0:01:00]} Re8 {[%emt 0:01:19]} 30. Bg4 {[%emt 0:07:25]} Rf6 {[%emt 0:00:23]} 31. Bf3 {[%emt 0:03:31]} Re3 {[%emt 0:01:00]} 32. Bxd5 {[%emt 0:25:28]} Rxf1+ {[%emt 0:00:25]} 33. Rxf1 {[%emt 0:00:00]} Rxc3 {[%emt 0:00:16]} 34. Bxf7+ {[%emt 0:00:00]} Kh7 {[%emt 0:00:22]} 0-1

[Event "1st SOA-GM Festival 2024"]
[Site "Bhubaneswar"]
[Date "2024.02.01"]
[Round "4.14"]
[White "Tologon tegin, Semetei"]
[Black "Dhananjay S"]
[Result "0-1"]
[WhiteElo "2384"]
[BlackElo "2151"]
[PlyCount "56"]
[EventDate "2024.02.01"]
[EventType "swiss"]
[EventCountry "IND"]
[TimeControl "5400+30"]

1. Nf3 {[%emt 0:00:02]} Nf6 {[%emt 0:00:06]} 2. e3 {[%emt 0:00:06]} d5 {[%emt 0:00:12]} 3. c4 {[%emt 0:00:07]} e6 {[%emt 0:00:04]} 4. b3 {[%emt 0:00:12]} Bd6 {[%emt 0:00:22]} 5. Bb2 {[%emt 0:00:15]} b6 {[%emt 0:00:17]} 6. Nc3 {[%emt 0:00:19]} a6 {[%emt 0:00:04]} 7. g3 {[%emt 0:04:16]} O-O {[%emt 0:00:26]} 8. Bg2 {[%emt 0:00:10]} Bb7 {[%emt 0:00:46]} 9. cxd5 {[%emt 0:03:11]} exd5 {[%emt 0:00:02]} 10. O-O {[%emt 0:01:23]} Re8 {[%emt 0:00:10]} 11. Rc1 {[%emt 0:01:26]} Nbd7 {[%emt 0:00:45]} 12. d4 {[%emt 0:00:16]} Qe7 {[%emt 0:03:21]} 13. Rc2 {[%emt 0:04:23]} Ne4 {[%emt 0:05:01]} 14. Qc1 {[%emt 0:23:05]} f5 {[%emt 0:05:09]} 15. Ne2 {[%emt 0:00:07]} Rac8 {[%emt 0:02:20]} 16. Nf4 {[%emt 0:00:21]} Qf7 {[%emt 0:08:16]} 17. Ba3 {[%emt 0:31:23]} c5 {[%emt 0:04:01]} 18. dxc5 {[%emt 0:00:12]} bxc5 {[%emt 0:00:02]} 19. Rd1 {[%emt 0:01:03]} Bxf4 {[%emt 0:06:57]} 20. gxf4 {[%emt 0:00:13]} Qg6 {[%emt 0:02:57]} 21. Kh1 {[%emt 0:10:47]} Qh5 {[%emt 0:05:37]} 22. Ng5 {[%emt 0:07:42]} d4 {[%emt 0:02:40]} 23. Re1 {[%emt 0:00:28]} Nxg5 {[%emt 0:01:37]} 24. Bxb7 {[%emt 0:02:02]} Nf3 {[%emt 0:01:44]} 25. Kg2 {[%emt 0:00:01]} Qg4+ {[%emt 0:00:55]} 26. Kh1 {[%emt 0:00:01]} Qh3 {[%emt 0:00:09]} 27. Bxf3 {[%emt 0:00:04]} Qxf3+ {[%emt 0:00:02]} 28. Kg1 {[%emt 0:00:04]} Rc6 {[%emt 0:01:14]} 0-1

[Event "1st SOA-GM Festival 2024"]
[Site "Bhubaneswar"]
[Date "2024.02.01"]
[Round "4.15"]
[White "Gonzales, Jayson"]
[Black "Priansh Das"]
[Result "0-1"]
[WhiteElo "2367"]
[BlackElo "1910"]
[PlyCount "189"]
[EventDate "2024.02.01"]
[EventType "swiss"]
[EventCountry "IND"]
[TimeControl "5400+30"]

1. d4 {[%emt 0:00:05]} Nf6 {[%emt 0:06:41]} 2. Nf3 {[%emt 0:00:32]} g6 {[%emt 0:00:06]} 3. c4 {[%emt 0:01:56]} Bg7 {[%emt 0:00:06]} 4. Nc3 {[%emt 0:00:05]} d6 {[%emt 0:00:06]} 5. Bg5 {[%emt 0:01:42]} O-O {[%emt 0:00:09]} 6. e3 {[%emt 0:00:45]} c6 {[%emt 0:01:07]} 7. Be2 {[%emt 0:01:45]} Qc7 {[%emt 0:00:38]} 8. Nd2 {[%emt 0:10:18]} e5 {[%emt 0:00:47]} 9. d5 {[%emt 0:00:18]} Ne8 {[%emt 0:05:42]} 10. g4 {[%emt 0:03:04]} h6 {[%emt 0:06:18]} 11. Bh4 {[%emt 0:00:04]} a5 {[%emt 0:01:07]} 12. e4 {[%emt 0:05:47]} Na6 {[%emt 0:01:58]} 13. f3 {[%emt 0:01:03]} Nc5 {[%emt 0:13:20]} 14. Nb3 {[%emt 0:03:55]} Na6 {[%emt 0:03:49]} 15. Qd2 {[%emt 0:01:17]} Kh7 {[%emt 0:08:04]} 16. O-O-O {[%emt 0:12:16]} a4 {[%emt 0:01:29]} 17. Nxa4 {[%emt 0:02:25]} cxd5 {[%emt 0:00:34]} 18. Kb1 {[%emt 0:04:29]} dxc4 {[%emt 0:12:44]} 19. Bxc4 {[%emt 0:01:00]} Bxg4 {[%emt 0:09:52]} 20. Be2 {[%emt 0:08:36]} Be6 {[%emt 0:02:42]} 21. Rc1 {[%emt 0:00:34]} Nc5 {[%emt 0:00:25]} 22. Naxc5 {[%emt 0:00:33]} dxc5 {[%emt 0:00:08]} 23. Rxc5 {[%emt 0:02:23]} Bxb3 {[%emt 0:02:24]} 24. Rxc7 {[%emt 0:00:06]} Bxa2+ {[%emt 0:00:07]} 25. Kc2 {[%emt 0:00:07]} Nxc7 {[%emt 0:00:07]} 26. Ra1 {[%emt 0:22:14]} Ne6 {[%emt 0:01:57]} 27. Rxa2 {[%emt 0:04:28]} Rxa2 {[%emt 0:00:13]} 28. Bc4 {[%emt 0:00:19]} Nd4+ {[%emt 0:01:24]} 29. Kd3 {[%emt 0:00:48]} Ra1 {[%emt 0:01:54]} 30. Be7 {[%emt 0:01:58]} Re8 {[%emt 0:01:05]} 31. Bc5 {[%emt 0:00:11]} Nxf3 {[%emt 0:03:14]} 32. Qf2 {[%emt 0:00:16]} Rd8+ {[%emt 0:01:10]} 33. Bd5 {[%emt 0:01:33]} Ng5 {[%emt 0:00:34]} 34. Kc2 {[%emt 0:00:34]} Rc8 {[%emt 0:07:46]} 35. Kb3 {[%emt 0:01:36]} Rc7 {[%emt 0:01:18]} 36. Bb6 {[%emt 0:02:14]} Rd7 {[%emt 0:00:38]} 37. Qe2 {[%emt 0:01:03]} Rd6 {[%emt 0:01:59]} 38. Bc5 {[%emt 0:05:00]} Ne6 {[%emt 0:00:39]} 39. Bxe6 {[%emt 0:00:41]} Rxe6 {[%emt 0:00:05]} 40. Qb5 {[%emt 0:00:11]} Rc1 {[%emt 0:01:16]} 41. Ka2 {[%emt 0:01:56]} h5 {[%emt 0:01:17]} 42. h4 {[%emt 0:00:33]} Rc6 {[%emt 0:01:40]} 43. b4 {[%emt 0:00:18]} Rc7 {[%emt 0:01:17]} 44. Qe8 {[%emt 0:00:31]} Rc4 {[%emt 0:00:51]} 45. Kb3 {[%emt 0:00:55]} Rxe4 {[%emt 0:00:22]} 46. Qd8 {[%emt 0:00:10]} Rc6 {[%emt 0:00:25]} 47. Qd7 {[%emt 0:00:01]} Rf6 {[%emt 0:00:43]} 48. Qxb7 {[%emt 0:00:40]} Rxh4 {[%emt 0:00:08]} 49. Ka4 {[%emt 0:00:09]} Rf1 {[%emt 0:00:12]} 50. Kb5 {[%emt 0:00:21]} Rhf4 {[%emt 0:00:27]} 51. Qg2 {[%emt 0:00:25]} e4 {[%emt 0:00:21]} 52. Kc6 {[%emt 0:00:54]} R1f3 {[%emt 0:00:49]} 53. Bd6 {[%emt 0:00:37]} Rf6 {[%emt 0:00:09]} 54. Kc7 {[%emt 0:00:02]} Rc3+ {[%emt 0:01:39]} 55. Bc5 {[%emt 0:00:02]} Bf8 {[%emt 0:00:43]} 56. Qb2 {[%emt 0:00:35]} Rff3 {[%emt 0:00:20]} 57. Kc6 {[%emt 0:00:12]} Rxc5+ {[%emt 0:00:17]} 58. bxc5 {[%emt 0:00:05]} Rf5 {[%emt 0:00:04]} 59. Qd4 {[%emt 0:00:36]} Bxc5 {[%emt 0:00:25]} 60. Qxe4 {[%emt 0:00:01]} Bf8 {[%emt 0:00:15]} 61. Kd7 {[%emt 0:00:24]} Bg7 {[%emt 0:00:09]} 62. Qc4 {[%emt 0:00:26]} Kg8 {[%emt 0:00:51]} 63. Qc8+ {[%emt 0:00:20]} Bf8 {[%emt 0:00:11]} 64. Qc3 {[%emt 0:00:32]} Rd5+ {[%emt 0:00:39]} 65. Ke8 {[%emt 0:00:06]} Bg7 {[%emt 0:00:07]} 66. Qc6 {[%emt 0:00:45]} Re5+ {[%emt 0:00:10]} 67. Kd7 {[%emt 0:00:05]} Re6 {[%emt 0:00:23]} 68. Qa8+ {[%emt 0:00:40]} Kh7 {[%emt 0:00:05]} 69. Qf3 {[%emt 0:00:21]} Bf6 {[%emt 0:00:25]} 70. Qg2 {[%emt 0:00:41]} Re5 {[%emt 0:00:24]} 71. Kd6 {[%emt 0:00:47]} Kg7 {[%emt 0:00:06]} 72. Qf3 {[%emt 0:01:03]} h4 {[%emt 0:00:22]} 73. Kd7 {[%emt 0:01:11]} g5 {[%emt 0:00:46]} 74. Kd6 {[%emt 0:00:09]} Kg6 {[%emt 0:00:19]} 75. Qd3+ {[%emt 0:00:11]} Rf5 {[%emt 0:00:15]} 76. Kd7 {[%emt 0:00:20]} g4 {[%emt 0:00:30]} 77. Ke8 {[%emt 0:00:08]} Be5 {[%emt 0:00:53]} 78. Qe4 {[%emt 0:02:36]} Kg5 {[%emt 0:00:27]} 79. Qe3+ {[%emt 0:00:14]} Bf4 {[%emt 0:00:45]} 80. Qc3 {[%emt 0:01:00]} f6 {[%emt 0:01:04]} 81. Kf7 {[%emt 0:00:33]} h3 {[%emt 0:00:08]} 82. Kg7 {[%emt 0:01:10]} h2 {[%emt 0:04:25]} 83. Qc6 {[%emt 0:00:13]} Be5 {[%emt 0:00:00]} 84. Qg2 {[%emt 0:00:23]} Kh4 {[%emt 0:00:00]} 85. Kf7 {[%emt 0:00:21]} Rf3 {[%emt 0:00:00]} 86. Kg6 {[%emt 0:00:10]} Rc3 {[%emt 0:00:00]} 87. Kf5 {[%emt 0:00:22]} Rf3+ {[%emt 0:00:00]} 88. Kg6 {[%emt 0:00:07]} Bg3 {[%emt 0:00:00]} 89. Kh6 {[%emt 0:01:37]} f5 {[%emt 0:00:00]} 90. Kg6 {[%emt 0:00:20]} Rf2 {[%emt 0:00:17]} 91. Qa8 {[%emt 0:01:00]} Kh3 {[%emt 0:00:15]} 92. Qh1 {[%emt 0:00:26]} Bh4 {[%emt 0:00:56]} 93. Kh5 {[%emt 0:00:20]} f4 {[%emt 0:00:54]} 94. Qd1 {[%emt 0:00:30]} Kg2 {[%emt 0:00:16]} 95. Qxg4+ {[%emt 0:00:43]} 0-1

[Event "1st SOA-GM Festival 2024"]
[Site "Bhubaneswar"]
[Date "2024.02.01"]
[Round "4.16"]
[White "Salonika, Saina"]
[Black "Liyanage, Ranindu Dilshan"]
[Result "1/2-1/2"]
[WhiteElo "2113"]
[BlackElo "2366"]
[PlyCount "62"]
[EventDate "2024.02.01"]
[EventType "swiss"]
[EventCountry "IND"]
[TimeControl "5400+30"]

1. e4 {[%emt 0:00:04]} c5 {[%emt 0:00:27]} 2. Nf3 {[%emt 0:00:12]} Nc6 {[%emt 0:01:29]} 3. d4 {[%emt 0:00:08]} cxd4 {[%emt 0:00:07]} 4. Nxd4 {[%emt 0:00:04]} Nf6 {[%emt 0:00:12]} 5. Nc3 {[%emt 0:00:05]} e5 {[%emt 0:00:06]} 6. Ndb5 {[%emt 0:00:04]} d6 {[%emt 0:00:06]} 7. Bg5 {[%emt 1:33:23]} a6 {[%emt 0:00:06]} 8. Na3 {[%emt 0:00:00]} b5 {[%emt 0:00:07]} 9. Nd5 {[%emt 0:00:00]} Be7 {[%emt 0:00:11]} 10. Bxf6 {[%emt 0:00:00]} Bxf6 {[%emt 0:00:06]} 11. c4 {[%emt 0:00:00]} b4 {[%emt 0:00:27]} 12. Nc2 {[%emt 0:00:00]} a5 {[%emt 0:00:27]} 13. g3 {[%emt 0:00:00]} g6 {[%emt 0:05:18]} 14. h4 {[%emt 0:00:00]} h5 {[%emt 0:04:40]} 15. Bh3 {[%emt 0:00:00]} Bg7 {[%emt 0:02:40]} 16. Bxc8 {[%emt 0:00:00]} Rxc8 {[%emt 0:00:05]} 17. b3 {[%emt 0:00:00]} Nb8 {[%emt 0:23:56]} 18. Qd2 {[%emt 0:00:00]} Nd7 {[%emt 0:04:07]} 19. Rd1 {[%emt 0:00:00]} Nc5 {[%emt 0:01:36]} 20. f3 {[%emt 0:00:00]} O-O {[%emt 0:05:43]} 21. Nde3 {[%emt 0:00:00]} Qf6 {[%emt 0:05:54]} 22. Ke2 {[%emt 0:00:00]} Rcd8 {[%emt 0:01:35]} 23. Nd5 {[%emt 0:00:00]} Qe6 {[%emt 0:00:29]} 24. Nc7 {[%emt 0:00:00]} Qe7 {[%emt 0:07:58]} 25. Nd5 {[%emt 0:00:00]} Qe6 {[%emt 0:02:06]} 26. Nc7 {[%emt 0:00:00]} Qd7 {[%emt 0:03:31]} 27. Nb5 {[%emt 0:00:00]} Qe7 {[%emt 0:00:47]} 28. Qd5 {[%emt 0:00:00]} Ne6 {[%emt 0:06:52]} 29. Qc6 {[%emt 0:00:00]} Nd4+ {[%emt 0:07:03]} 30. Ncxd4 {[%emt 0:00:00]} exd4 {[%emt 0:01:15]} 31. Qd5 {[%emt 0:00:00]} Rc8 {[%emt 0:05:04]} 1/2-1/2

[Event "1st SOA-GM Festival 2024"]
[Site "Bhubaneswar"]
[Date "2024.02.01"]
[Round "4.17"]
[White "Manish Anto Cristiano F"]
[Black "Jake Shanty"]
[Result "0-1"]
[WhiteElo "2349"]
[BlackElo "1903"]
[PlyCount "44"]
[EventDate "2024.02.01"]
[EventType "swiss"]
[EventCountry "IND"]
[TimeControl "5400+30"]

1. Nf3 {[%emt 0:00:03]} Nf6 {[%emt 0:00:28]} 2. g3 {[%emt 0:00:44]} b6 {[%emt 0:03:46]} 3. Bg2 {[%emt 0:00:24]} Bb7 {[%emt 0:00:44]} 4. c4 {[%emt 0:00:45]} e6 {[%emt 0:02:10]} 5. O-O {[%emt 0:00:31]} Be7 {[%emt 0:02:38]} 6. d4 {[%emt 0:02:00]} O-O {[%emt 0:04:56]} 7. Nc3 {[%emt 0:00:45]} Ne4 {[%emt 0:05:15]} 8. Qd3 {[%emt 0:01:19]} Nxc3 {[%emt 0:02:08]} 9. Ng5 {[%emt 0:01:21]} Nxe2+ {[%emt 0:02:45]} 10. Qxe2 {[%emt 0:00:44]} Bxg2 {[%emt 0:01:06]} 11. Qh5 {[%emt 0:01:40]} Bxg5 {[%emt 0:05:52]} 12. Bxg5 {[%emt 0:00:09]} f6 {[%emt 0:00:11]} 13. Kxg2 {[%emt 1:26:35]} fxg5 {[%emt 0:00:08]} 14. Rad1 {[%emt 0:00:00]} Qf6 {[%emt 0:10:01]} 15. f4 {[%emt 0:00:00]} Nc6 {[%emt 0:01:03]} 16. fxg5 {[%emt 0:00:00]} Qg6 {[%emt 0:01:22]} 17. Qxg6 {[%emt 0:00:00]} hxg6 {[%emt 0:00:08]} 18. d5 {[%emt 0:00:00]} Rxf1 {[%emt 0:01:03]} 19. Kxf1 {[%emt 0:00:00]} Ne5 {[%emt 0:02:02]} 20. dxe6 {[%emt 0:00:00]} d6 {[%emt 0:00:29]} 21. b4 {[%emt 0:00:00]} Nxc4 {[%emt 0:03:22]} 22. Rc1 {[%emt 0:04:30]} b5 {[%emt 0:00:44]} 0-1